fUSD/lending_fUSD_20251113
["ID","MTS","AMOUNT","RATE_DAILY","PERIOD"]
[393794251,1762995042297,-927.0,0.00039875,7]
[393794252,1762995042306,-300.0,0.00039886,2]
[393794253,1762995042315,-620.2742432,0.000399,120]
[393794254,1762995042324,-152.0,0.00039918,8]
[393794255,1762995042336,-300.0,0.0003992,2]
[393794256,1762995042345,-1000.0,0.00039942,7]
[393794257,1762995042354,-300.0,0.00039958,2]
[393794258,1762995042364,-300.0,0.00039968,2]
[393794259,1762995042373,-300.0,0.00039985,2]
[393794260,1762995042384,-495.35484437,0.00039999,31]
[393794261,1762995042393,-500.0,0.00039999,31]
[393794262,1762995042401,-500.0,0.00039999,31]
[393794263,1762995042410,-339.41341615,0.00039999,31]
[393794264,1762995042421,-160.48888836,0.00039999,31]
[393794265,1762995042431,-500.0,0.00039999,31]
[393794266,1762995042440,-500.0,0.00039999,31]
[393794267,1762995042449,-500.0,0.00039999,31]
[393794268,1762995042459,-500.0,0.00039999,31]
[393794269,1762995042468,-500.0,0.00039999,31]
[393794270,1762995042480,-11000.0,0.0004,2]
[393794271,1762995042489,-1031.7365803,0.0004,2]
[393794272,1762995042499,-300.0,0.00040014,2]
[393794273,1762995042508,-300.0,0.00040036,2]
[393794274,1762995042517,-300.0,0.00040052,2]
[393794275,1762995042526,-300.0,0.00040061,2]
[393794276,1762995042535,-300.0,0.00040063,2]
[393794277,1762995042544,-300.0,0.00040069,2]
[393794278,1762995042553,-300.0,0.00040078,2]
[393794279,1762995042562,-300.0,0.00040094,2]
[393794280,1762995042571,-5888.0,0.00040109,120]
[393794281,1762995042580,-300.0,0.00040135,2]
[393794282,1762995042589,-300.0,0.00040187,2]
[393794283,1762995042598,-300.0,0.00040193,2]
[393794284,1762995042607,-332.6,0.000402,30]
[393794285,1762995042617,-143938.36576772,0.000402,28]
[393794286,1762995042626,-300.0,0.00040203,2]
[393794287,1762995042635,-300.0,0.00040248,2]
[393794288,1762995042646,-300.0,0.00040285,2]
[393794289,1762995042656,-300.0,0.00040299,2]
[393794290,1762995042666,-2200.0,0.000403,14]
[393794291,1762995042676,-300.0,0.00040314,2]
[393794292,1762995042694,-300.0,0.00040322,2]
[393794293,1762995042706,-300.0,0.00040353,2]
[393794294,1762995042716,-300.0,0.00040361,2]
[393794295,1762995042726,-300.0,0.00040364,2]
[393794296,1762995042735,-487.5866993,0.00040379,2]
[393794297,1762995042745,-300.0,0.0004038,2]
[393794298,1762995042754,-300.0,0.0004039,2]
[393794299,1762995042764,-400.0,0.000404,14]
[393794300,1762995042774,-300.0,0.00040402,2]
[393794301,1762995042784,-300.0,0.0004041,2]
[393794302,1762995042793,-239.56426196,0.00040412,5]
[393794303,1762995042803,-300.0,0.00040415,2]
[393794304,1762995042812,-280.0,0.00040428,4]
[393794305,1762995042822,-478.56668374,0.00040437,30]
[393794306,1762995042831,-12436.10712286,0.00040437,30]
[393794307,1762995042840,-300.0,0.00040439,2]
[393794308,1762995042850,-300.0,0.0004044,2]
[393794309,1762995042859,-300.0,0.00040442,2]
[393794310,1762995042869,-152.203836,0.00040458,120]
[393794311,1762995042878,-151.0,0.00040458,120]
[393794312,1762995042888,-151.0,0.00040458,120]
[393794313,1762995042897,-151.0,0.00040458,120]
[393794314,1762995042907,-151.0,0.00040458,120]
[393794316,1762995042916,-155.90443,0.00040458,120]
[393794318,1762995042925,-151.0,0.00040458,120]
[393794320,1762995042935,-151.0,0.00040458,120]
[393794322,1762995042944,-151.0,0.00040458,120]
[393794324,1762995042953,-151.0,0.00040458,120]
[393794326,1762995042962,-154.01068,0.00040458,120]
[393794328,1762995042971,-151.0,0.00040458,120]
[393794329,1762995042982,-151.0,0.00040458,120]
[393794330,1762995042991,-201.762774,0.00040458,120]
[393794331,1762995043001,-151.0,0.00040458,120]
[393794332,1762995043010,-201.762774,0.00040458,120]
[393794333,1762995043020,-151.0,0.00040458,120]
[393794334,1762995043030,-201.762774,0.00040458,120]
[393794335,1762995043039,-201.762774,0.00040458,120]
[393794336,1762995043048,-151.0,0.00040458,120]
[393794337,1762995043057,-194.013827,0.00040458,28]
[393794338,1762995043067,-151.0,0.00040458,120]
[393794339,1762995043076,-151.0,0.00040458,120]
[393794340,1762995043086,-151.0,0.00040458,120]
[393794341,1762995043095,-4197.0,0.00040458,7]
[393794342,1762995043104,-300.0,0.00040463,2]
[393794343,1762995043250,-999.93001429,0.00040474,7]
[393794344,1762995043260,-300.0,0.00040496,2]
[393794345,1762995043272,-350.77235348,0.000405,120]
[393794346,1762995043281,-300.0,0.000405,2]
[393794347,1762995043290,-400.0,0.000405,14]
[393794348,1762995043299,-300.0,0.00040501,2]
[393794349,1762995043308,-500.0,0.0004053,7]
[393794350,1762995043318,-152.948113,0.00040531,120]
[393794351,1762995043327,-153.663221,0.00040531,120]
[393794352,1762995043337,-151.0,0.00040531,120]
[393794353,1762995043346,-151.0,0.00040531,120]
[393794354,1762995043355,-153.085479,0.00040531,120]
[393794355,1762995043364,-151.0,0.00040531,120]
[393794356,1762995043373,-151.0,0.00040531,120]
[393794357,1762995043382,-151.0,0.00040531,120]
[393794358,1762995043391,-151.0,0.00040531,120]
[393794359,1762995043400,-151.0,0.00040531,120]
[393794360,1762995043410,-253.887144,0.00040531,120]
[393794361,1762995043423,-151.0,0.00040531,120]
[393794362,1762995043432,-177.868531,0.00040531,120]
[393794363,1762995043441,-253.887144,0.00040531,120]
[393794364,1762995043450,-253.887144,0.00040531,120]
[393794365,1762995043460,-253.887144,0.00040531,120]
[393794366,1762995043472,-151.0,0.00040531,120]
[393794367,1762995043483,-151.0,0.00040531,120]
[393794368,1762995043493,-151.0,0.00040531,120]
[393794369,1762995043505,-151.0,0.00040531,120]
[393794370,1762995043515,-151.0,0.00040531,120]
[393794371,1762995043525,-266.388763,0.00040531,120]
[393794372,1762995043535,-266.388763,0.00040531,120]
[393794373,1762995043544,-266.388763,0.00040531,120]
[393794374,1762995043553,-266.388763,0.00040531,120]
[393794375,1762995043562,-492.835577,0.00040531,120]
[393794376,1762995043571,-492.835577,0.00040531,120]
[393794377,1762995043585,-492.835577,0.00040531,120]
[393794378,1762995043594,-492.835577,0.00040531,120]
[393794379,1762995043603,-151.518457,0.00040531,120]
[393794380,1762995043612,-151.0,0.00040531,120]
[393794381,1762995043622,-151.0,0.00040531,120]
[393794382,1762995043631,-151.0,0.00040531,120]
[393794383,1762995043640,-380.080443,0.00040531,120]
[393794384,1762995043649,-380.080443,0.00040531,120]
[393794385,1762995043659,-151.0,0.00040531,120]
[393794386,1762995043668,-380.080443,0.00040531,120]
[393794387,1762995043678,-151.0,0.00040531,120]
[393794388,1762995043687,-151.0,0.00040531,120]
[393794389,1762995043697,-380.080443,0.00040531,120]
[393794390,1762995043707,-153.234468,0.00040531,120]
[393794391,1762995043717,-151.0,0.00040531,120]
[393794392,1762995043726,-151.0,0.00040531,120]
[393794393,1762995043736,-151.0,0.00040531,120]
[393794395,1762995043745,-151.0,0.00040531,120]
[393794396,1762995043755,-151.0,0.00040531,120]
[393794398,1762995043764,-211.695624,0.00040531,120]
[393794400,1762995043773,-211.695624,0.00040531,120]
[393794402,1762995043783,-211.695624,0.00040531,120]
[393794404,1762995043792,-151.0,0.00040531,120]
[393794406,1762995043801,-211.695624,0.00040531,120]
[393794407,1762995043810,-233.129119,0.00040531,120]
[393794408,1762995043820,-151.0,0.00040531,120]
[393794409,1762995043830,-151.0,0.00040531,30]
[393794410,1762995043839,-233.129119,0.00040531,120]
[393794411,1762995043849,-151.0,0.00040531,30]
[393794412,1762995043858,-151.0,0.00040531,120]
[393794413,1762995043868,-233.129119,0.00040531,120]
[393794414,1762995043877,-233.129119,0.00040531,120]
[393794415,1762995043887,-151.0,0.00040531,30]
[393794416,1762995043898,-151.0,0.00040531,120]
[393794417,1762995043908,-155.615775,0.00040531,120]
[393794418,1762995043918,-153.128044,0.00040531,30]
[393794419,1762995043928,-151.0,0.00040531,120]
[393794420,1762995043938,-155.615775,0.00040531,120]
[393794421,1762995043948,-152.875373,0.00040531,120]
[393794422,1762995043957,-155.615775,0.00040531,120]
[393794423,1762995043967,-152.791909,0.00040531,120]
[393794424,1762995043977,-155.615775,0.00040531,120]
[393794425,1762995043987,-163.789672,0.00040531,120]
[393794426,1762995043996,-152.099593,0.00040531,120]
[393794427,1762995044006,-151.0,0.00040531,120]
[393794428,1762995044015,-242.308829,0.00040531,120]
[393794429,1762995044024,-160.412142,0.00040531,120]
[393794430,1762995044034,-29480.25957989,0.00040531,15]
[393794431,1762995044047,-360.84756809,0.00040532,2]
[393794432,1762995044056,-588.63016062,0.00040532,8]
[393794433,1762995044066,-340.66331476,0.00040532,2]
[393794434,1762995044075,-221.45637081,0.00040532,15]
[393794435,1762995044085,-3113.00996234,0.00040532,2]
[393794436,1762995044094,-359.8936367,0.00040532,2]
[393794437,1762995044104,-300.0,0.00040553,2]
[393794438,1762995044113,-168.7372605,0.00040598,14]
[393794439,1762995044123,-5000.0,0.000406,120]
[393794440,1762995044133,-150.0,0.000406,60]
[393794441,1762995044142,-400.0,0.000406,14]
[393794442,1762995044151,-201.730087,0.000406,20]
[393794443,1762995044160,-155.0,0.000406,30]
[393794444,1762995044169,-154.0,0.000406,30]
[393794445,1762995044179,-152.0,0.00040604,9]
[393794446,1762995044188,-204.79671333,0.00040618,2]
[393794447,1762995044197,-300.0,0.0004062,2]
[393794448,1762995044206,-683.13022332,0.00040622,7]
[393794449,1762995044215,-683.13022332,0.00040622,7]
[393794450,1762995044225,-300.0,0.00040628,2]
[393794451,1762995044234,-169.64122107,0.00040629,14]
[393794452,1762995044244,-71319.11035698,0.0004063,7]
[393794453,1762995044252,-500.0,0.0004063,7]
[393794454,1762995044262,-500.0,0.0004063,7]
[393794455,1762995044271,-500.0,0.0004063,7]
[393794456,1762995044283,-500.0,0.0004063,7]
[393794457,1762995044293,-500.0,0.0004063,7]
[393794458,1762995044302,-500.0,0.0004063,7]
[393794459,1762995044312,-500.0,0.0004063,7]
[393794460,1762995044321,-500.0,0.0004063,7]
[393794461,1762995044330,-500.0,0.0004063,7]
[393794462,1762995044339,-500.0,0.0004063,7]
[393794463,1762995044348,-500.0,0.0004063,7]
[393794464,1762995044358,-500.0,0.0004063,7]
[393794465,1762995044367,-150.0,0.0004063,7]
[393794466,1762995044376,-800.89686854,0.00040631,30]
[393794467,1762995044385,-800.89686854,0.00040631,30]
[393794468,1762995044394,-151.0,0.00040631,120]
[393794469,1762995044403,-151.0,0.00040631,120]
[393794470,1762995044413,-151.0,0.00040631,120]
[393794471,1762995044425,-152.907009,0.00040631,120]
[393794472,1762995044435,-151.0,0.00040631,120]
[393794473,1762995044444,-151.0,0.00040631,120]
[393794474,1762995044453,-151.0,0.00040631,120]
[393794475,1762995044463,-151.0,0.00040631,120]
[393794476,1762995044472,-151.0,0.00040631,120]
[393794477,1762995044481,-151.0,0.00040631,120]
[393794478,1762995044491,-151.0,0.00040631,120]
[393794479,1762995044501,-151.0,0.00040631,120]
[393794480,1762995044511,-188.375166,0.00040631,120]
[393794481,1762995044520,-151.0,0.00040631,120]
[393794482,1762995044529,-151.0,0.00040631,120]
[393794483,1762995044538,-151.0,0.00040631,120]
[393794484,1762995044547,-151.0,0.00040631,120]
[393794485,1762995044556,-151.000001,0.00040631,120]
[393794486,1762995044566,-151.0,0.00040631,120]
[393794487,1762995044575,-151.0,0.00040631,120]
[393794488,1762995044584,-151.0,0.00040631,120]
[393794489,1762995044594,-151.0,0.00040631,120]
[393794490,1762995044603,-151.0,0.00040631,120]
[393794491,1762995044613,-151.0,0.00040631,120]
[393794492,1762995044624,-151.0,0.00040631,120]
[393794493,1762995044634,-151.0,0.00040631,120]
[393794494,1762995044643,-151.0,0.00040631,120]
[393794495,1762995044653,-281.569822,0.00040631,120]
[393794496,1762995044662,-151.0,0.00040631,120]
[393794497,1762995044671,-151.0,0.00040631,120]
[393794498,1762995044680,-151.0,0.00040631,120]
[393794499,1762995044690,-151.0,0.00040631,120]
[393794500,1762995044699,-152.904202,0.00040631,120]
[393794501,1762995044708,-151.0,0.00040631,120]
[393794502,1762995044717,-151.988276,0.00040631,120]
[393794503,1762995044726,-151.0,0.00040631,120]
[393794504,1762995044736,-151.0,0.00040631,120]
[393794505,1762995044745,-151.0,0.00040631,120]
[393794506,1762995044755,-151.0,0.00040631,120]
[393794507,1762995044764,-151.0,0.00040631,120]
[393794508,1762995044773,-151.0,0.00040631,120]
[393794509,1762995044783,-151.0,0.00040631,120]
[393794510,1762995044792,-151.0,0.00040631,120]
[393794511,1762995044801,-151.0,0.00040631,120]
[393794512,1762995044811,-151.0,0.00040631,120]
[393794513,1762995044821,-151.0,0.00040631,120]
[393794514,1762995044830,-256.121938,0.00040631,120]
[393794515,1762995044840,-151.0,0.00040631,120]
[393794516,1762995044850,-151.0,0.00040631,120]
[393794517,1762995044859,-227.28703,0.00040631,120]
[393794518,1762995044868,-151.0,0.00040631,120]
[393794519,1762995044878,-151.0,0.00040631,120]
[393794520,1762995044887,-151.0,0.00040631,120]
[393794521,1762995044896,-151.0,0.00040631,120]
[393794522,1762995044906,-151.0,0.00040631,120]
[393794523,1762995044915,-151.0,0.00040631,30]
[393794524,1762995044924,-151.0,0.00040631,120]
[393794525,1762995044933,-151.0,0.00040631,30]
[393794526,1762995044943,-209.866065,0.00040631,120]
[393794527,1762995044952,-151.0,0.00040631,30]
[393794528,1762995044962,-151.0,0.00040631,30]
[393794529,1762995044971,-151.0,0.00040631,30]
[393794530,1762995044980,-151.0,0.00040631,120]
[393794531,1762995044990,-151.0,0.00040631,120]
[393794532,1762995044999,-151.0,0.00040631,120]
[393794533,1762995045008,-151.0,0.00040631,120]
[393794534,1762995045018,-151.0,0.00040631,120]
[393794535,1762995045131,-151.0,0.00040631,14]
[393794536,1762995045141,-153.384762,0.00040631,14]
[393794537,1762995045150,-151.0,0.00040631,120]
[393794538,1762995045159,-151.0,0.00040631,120]
[393794539,1762995045169,-151.0,0.00040631,120]
[393794540,1762995045178,-152.304365,0.00040631,120]
[393794541,1762995045192,-151.0,0.00040631,120]
[393794542,1762995045202,-153.32783,0.00040631,120]
[393794543,1762995045211,-151.0,0.00040631,120]
[393794544,1762995045220,-151.0,0.00040631,120]
[393794545,1762995045230,-170.049517,0.00040631,120]
[393794546,1762995045241,-151.0,0.00040631,120]
[393794547,1762995045251,-151.0,0.00040631,120]
[393794548,1762995045259,-151.0,0.00040631,120]
[393794549,1762995045269,-151.0,0.00040631,120]
[393794550,1762995045278,-151.0,0.00040631,120]
[393794551,1762995045287,-259.160155,0.00040631,120]
[393794552,1762995045296,-153.398588,0.00040631,120]
[393794553,1762995045305,-151.0,0.00040631,120]
[393794554,1762995045314,-166.870272,0.00040631,120]
[393794555,1762995045323,-151.0,0.00040631,120]
[393794556,1762995045332,-151.0,0.00040631,120]
[393794557,1762995045341,-151.0,0.00040631,120]
[393794558,1762995045350,-151.0,0.00040631,120]
[393794559,1762995045359,-151.0,0.00040631,120]
[393794560,1762995045368,-305.196968,0.00040631,120]
[393794561,1762995045377,-305.196968,0.00040631,120]
[393794562,1762995045386,-305.196968,0.00040631,120]
[393794563,1762995045395,-305.196968,0.00040631,120]
[393794564,1762995045404,-305.196968,0.00040631,120]
[393794565,1762995045413,-186.212424,0.00040631,120]
[393794566,1762995045424,-305.196968,0.00040631,120]
[393794567,1762995045433,-186.212424,0.00040631,120]
[393794568,1762995045442,-305.196968,0.00040631,120]
[393794569,1762995045451,-151.0,0.00040631,120]
[393794570,1762995045461,-305.196968,0.00040631,120]
[393794571,1762995045470,-186.212424,0.00040631,120]
[393794572,1762995045487,-305.196968,0.00040631,120]
[393794573,1762995045503,-186.212424,0.00040631,120]
[393794574,1762995045512,-305.196968,0.00040631,120]
[393794575,1762995045521,-151.0,0.00040631,120]
[393794576,1762995045530,-305.196968,0.00040631,120]
[393794577,1762995045539,-186.212424,0.00040631,120]
[393794578,1762995045548,-151.0,0.00040631,120]
[393794579,1762995045557,-305.196968,0.00040631,120]
[393794580,1762995045566,-305.196968,0.00040631,120]
[393794581,1762995045576,-186.212424,0.00040631,120]
[393794582,1762995045585,-151.0,0.00040631,120]
[393794583,1762995045594,-305.196968,0.00040631,120]
[393794584,1762995045603,-186.212424,0.00040631,120]
[393794585,1762995045612,-151.0,0.00040631,120]
[393794586,1762995045621,-305.196968,0.00040631,120]
[393794587,1762995045631,-186.212424,0.00040631,120]
[393794588,1762995045640,-151.0,0.00040631,120]
[393794589,1762995045649,-305.196968,0.00040631,120]
[393794590,1762995045659,-186.212424,0.00040631,120]
[393794591,1762995045669,-151.0,0.00040631,120]
[393794592,1762995045681,-305.196968,0.00040631,120]
[393794593,1762995045693,-186.212424,0.00040631,120]
[393794594,1762995045703,-151.0,0.00040631,120]
[393794595,1762995045713,-305.196968,0.00040631,120]
[393794596,1762995045723,-151.0,0.00040631,120]
[393794597,1762995045733,-186.212424,0.00040631,120]
[393794598,1762995045743,-151.0,0.00040631,120]
[393794599,1762995045752,-305.196968,0.00040631,120]
[393794600,1762995045761,-151.0,0.00040631,120]
[393794601,1762995045771,-186.212424,0.00040631,120]
[393794602,1762995045780,-151.0,0.00040631,120]
[393794603,1762995045790,-151.0,0.00040631,120]
[393794604,1762995045799,-186.212424,0.00040631,120]
[393794605,1762995045808,-151.0,0.00040631,120]
[393794606,1762995045817,-305.196975,0.00040631,120]
[393794607,1762995045826,-151.0,0.00040631,120]
[393794608,1762995045836,-186.212424,0.00040631,120]
[393794609,1762995045845,-151.0,0.00040631,120]
[393794610,1762995045855,-151.0,0.00040631,120]
[393794611,1762995045864,-186.212424,0.00040631,120]
[393794612,1762995045874,-151.0,0.00040631,120]
[393794613,1762995045883,-151.0,0.00040631,120]
[393794614,1762995045893,-186.212424,0.00040631,120]
[393794615,1762995045902,-151.0,0.00040631,120]
[393794616,1762995045912,-151.0,0.00040631,120]
[393794617,1762995045922,-151.0,0.00040631,120]
[393794618,1762995045931,-186.212424,0.00040631,120]
[393794619,1762995045940,-151.0,0.00040631,120]
[393794620,1762995045949,-186.212424,0.00040631,120]
[393794621,1762995045959,-151.0,0.00040631,120]
[393794622,1762995045968,-186.212424,0.00040631,120]
[393794623,1762995045978,-151.0,0.00040631,120]
[393794624,1762995045988,-186.212424,0.00040631,120]
[393794625,1762995045997,-288.713032,0.00040631,120]
[393794627,1762995046007,-151.0,0.00040631,120]
[393794628,1762995046016,-151.0,0.00040631,120]
[393794629,1762995046026,-151.0,0.00040631,120]
[393794630,1762995046035,-151.0,0.00040631,120]
[393794631,1762995046044,-151.0,0.00040631,120]
[393794632,1762995046054,-153.311613,0.00040631,120]
[393794633,1762995046064,-151.0,0.00040631,120]
[393794634,1762995046074,-151.0,0.00040631,120]
[393794635,1762995046088,-151.0,0.00040631,120]
[393794636,1762995046098,-151.0,0.00040631,120]
[393794637,1762995046108,-151.0,0.00040631,120]
[393794638,1762995046118,-151.0,0.00040631,120]
[393794639,1762995046127,-151.0,0.00040631,120]
[393794640,1762995046137,-151.0,0.00040631,120]
[393794641,1762995046146,-151.0,0.00040631,120]
[393794642,1762995046155,-151.0,0.00040631,120]
[393794643,1762995046165,-151.0,0.00040631,120]
[393794644,1762995046175,-151.0,0.00040631,120]
[393794645,1762995046185,-151.0,0.00040631,120]
[393794646,1762995046194,-151.0,0.00040631,120]
[393794647,1762995046203,-151.0,0.00040631,120]
[393794648,1762995046215,-151.0,0.00040631,120]
[393794649,1762995046225,-151.0,0.00040631,120]
[393794650,1762995046238,-151.0,0.00040631,120]
[393794651,1762995046247,-151.0,0.00040631,120]
[393794652,1762995046256,-301.999999,0.00040631,120]
[393794653,1762995046266,-151.0,0.00040631,120]
[393794654,1762995046275,-151.0,0.00040631,120]
[393794655,1762995046285,-151.0,0.00040631,120]
[393794656,1762995046294,-151.0,0.00040631,120]
[393794657,1762995046304,-151.0,0.00040631,60]
[393794658,1762995046313,-151.0,0.00040631,60]
[393794659,1762995046322,-221.513514,0.00040631,60]
[393794660,1762995046332,-152.552046,0.00040631,120]
[393794661,1762995046341,-151.0,0.00040631,60]
[393794662,1762995046351,-151.0,0.00040631,60]
[393794663,1762995046360,-151.0,0.00040631,60]
[393794664,1762995046370,-151.0,0.00040631,60]
[393794665,1762995046379,-152.334625,0.00040631,120]
[393794666,1762995046388,-268.373011,0.00040631,60]
[393794667,1762995046397,-151.0,0.00040631,120]
[393794668,1762995046407,-151.0,0.00040631,120]
[393794669,1762995046416,-151.0,0.00040631,120]
[393794670,1762995046435,-151.0,0.00040631,120]
[393794671,1762995046444,-151.0,0.00040631,120]
[393794672,1762995046453,-151.0,0.00040631,120]
[393794673,1762995046463,-151.0,0.00040631,120]
[393794674,1762995046472,-151.0,0.00040631,120]
[393794675,1762995046482,-151.0,0.00040631,120]
[393794676,1762995046491,-151.0,0.00040631,120]
[393794677,1762995046501,-252.110588,0.00040631,120]
[393794678,1762995046511,-151.0,0.00040631,120]
[393794679,1762995046520,-151.0,0.00040631,120]
[393794680,1762995046529,-151.0,0.00040631,120]
[393794681,1762995046539,-151.0,0.00040631,120]
[393794682,1762995046547,-253.668971,0.00040631,120]
[393794683,1762995046557,-153.895935,0.00040631,120]
[393794684,1762995046566,-151.0,0.00040631,30]
[393794685,1762995046575,-153.025946,0.00040631,30]
[393794686,1762995046584,-151.0,0.00040631,120]
[393794687,1762995046593,-151.0,0.00040631,120]
[393794688,1762995046602,-151.0,0.00040631,120]
[393794689,1762995046615,-151.0,0.00040631,120]
[393794690,1762995046624,-151.0,0.00040631,120]
[393794691,1762995046634,-151.0,0.00040631,120]
[393794693,1762995046643,-151.0,0.00040631,120]
[393794695,1762995046652,-151.0,0.00040631,120]
[393794696,1762995046662,-247.629701,0.00040631,120]
[393794697,1762995046671,-151.0,0.00040631,120]
[393794698,1762995046680,-151.0,0.00040631,120]
[393794699,1762995046689,-156.741057,0.00040631,120]
[393794700,1762995046698,-253.887144,0.00040631,120]
[393794701,1762995046707,-253.887144,0.00040631,120]
[393794702,1762995046716,-253.887144,0.00040631,120]
[393794703,1762995046726,-253.887144,0.00040631,120]
[393794704,1762995046736,-151.0,0.00040631,120]
[393794705,1762995046745,-151.0,0.00040631,120]
[393794706,1762995046755,-253.887144,0.00040631,120]
[393794709,1762995046767,-253.887144,0.00040631,120]
[393794710,1762995046889,-253.887144,0.00040631,120]
[393794711,1762995046899,-253.887144,0.00040631,120]
[393794712,1762995046908,-253.887144,0.00040631,120]
[393794713,1762995046918,-253.887144,0.00040631,120]
[393794714,1762995046927,-253.887144,0.00040631,120]
[393794715,1762995046936,-253.887144,0.00040631,120]
[393794716,1762995046946,-253.887144,0.00040631,120]
[393794717,1762995046956,-253.887144,0.00040631,120]
[393794718,1762995046965,-253.887144,0.00040631,120]
[393794719,1762995046975,-253.887147,0.00040631,120]
[393794720,1762995046986,-151.0,0.00040631,120]
[393794721,1762995046995,-151.0,0.00040631,120]
[393794722,1762995047005,-151.0,0.00040631,120]
[393794723,1762995047014,-151.0,0.00040631,120]
[393794724,1762995047023,-151.0,0.00040631,120]
[393794725,1762995047033,-151.0,0.00040631,120]
[393794726,1762995047042,-153.742044,0.00040631,120]
[393794727,1762995047053,-151.0,0.00040631,120]
[393794728,1762995047062,-151.0,0.00040631,120]
[393794729,1762995047071,-151.0,0.00040631,120]
[393794730,1762995047080,-266.388763,0.00040631,120]
[393794731,1762995047089,-151.0,0.00040631,120]
[393794732,1762995047099,-266.388763,0.00040631,120]
[393794733,1762995047109,-151.0,0.00040631,120]
[393794734,1762995047118,-266.388763,0.00040631,120]
[393794735,1762995047127,-266.388763,0.00040631,120]
[393794736,1762995047136,-266.388763,0.00040631,120]
[393794737,1762995047145,-266.388763,0.00040631,120]
[393794738,1762995047154,-266.388763,0.00040631,120]
[393794739,1762995047164,-266.388763,0.00040631,120]
[393794740,1762995047174,-266.388763,0.00040631,120]
[393794741,1762995047183,-266.388763,0.00040631,120]
[393794742,1762995047191,-266.388763,0.00040631,120]
[393794743,1762995047201,-266.388763,0.00040631,120]
[393794744,1762995047210,-266.388763,0.00040631,120]
[393794745,1762995047219,-266.388763,0.00040631,120]
[393794746,1762995047229,-266.388763,0.00040631,120]
[393794747,1762995047238,-266.388766,0.00040631,120]
[393794748,1762995047247,-492.835577,0.00040631,120]
[393794749,1762995047257,-492.835577,0.00040631,120]
[393794750,1762995047266,-492.835577,0.00040631,120]
[393794751,1762995047276,-492.835577,0.00040631,120]
[393794752,1762995047285,-492.835577,0.00040631,120]
[393794753,1762995047294,-492.835577,0.00040631,120]
[393794754,1762995047303,-492.835577,0.00040631,120]
[393794755,1762995047312,-492.835577,0.00040631,120]
[393794756,1762995047321,-492.835577,0.00040631,120]
[393794757,1762995047330,-492.835577,0.00040631,120]
[393794758,1762995047342,-492.835577,0.00040631,120]
[393794759,1762995047351,-492.835577,0.00040631,120]
[393794760,1762995047362,-492.835577,0.00040631,120]
[393794761,1762995047371,-492.835577,0.00040631,120]
[393794762,1762995047381,-492.835577,0.00040631,120]
[393794763,1762995047391,-492.835575,0.00040631,120]
[393794764,1762995047401,-160.087704,0.00040631,120]
[393794765,1762995047413,-380.080443,0.00040631,120]
[393794766,1762995047426,-380.080443,0.00040631,120]
[393794767,1762995047436,-380.080443,0.00040631,120]
[393794768,1762995047445,-380.080443,0.00040631,120]